fUSD/lending_fUSD_20240613
["ID","MTS","AMOUNT","RATE_DAILY","PERIOD"]
[329358835,1718277132584,-469.32593514,0.00028,2]
[329358836,1718277132610,-10000.0,0.00028,2]
[329358837,1718277132634,-8991.0,0.00028,4]
[329358838,1718277132649,-202610.0,0.00028,10]
[329358839,1718277132668,-341.10006077,0.00028,7]
[329358840,1718277132686,-20000.0,0.00028,7]
[329358841,1718277132703,-20000.0,0.00028,2]
[329358842,1718277132725,-754.64139112,0.00028,2]
[329358843,1718277132740,-200.0,0.00028,2]
[329358844,1718277132758,-152.96556495,0.00028017,2]
[329358845,1718277132773,-526.20582968,0.00028032,2]
[329358846,1718277132789,-628.5,0.00028058,3]
[329358847,1718277132806,-877.35,0.00028058,3]
[329358848,1718277132820,-1070.7,0.00028058,3]
[329358849,1718277132837,-500.0,0.00028058,3]
[329358850,1718277132851,-871.84,0.00028058,3]
[329358851,1718277132867,-1196.79,0.00028058,3]
[329358852,1718277132883,-2448.85,0.00028058,3]
[329358853,1718277132897,-748.9,0.00028058,3]
[329358854,1718277132913,-1584.05,0.00028058,3]
[329358855,1718277132929,-875.77,0.00028058,3]
[329358856,1718277132946,-896.33,0.00028058,3]
[329358857,1718277132969,-1393.21,0.00028058,3]
[329358858,1718277132987,-712.29,0.00028058,3]
[329358859,1718277133004,-3021.74,0.00028058,3]
[329358860,1718277133020,-2955.13,0.00028058,3]
[329358861,1718277133039,-1592.21,0.00028058,3]
[329358862,1718277133061,-1489.31,0.00028058,3]
[329358863,1718277133076,-1351.15,0.00028058,3]
[329358864,1718277133091,-1097.22,0.00028058,3]
[329358865,1718277133106,-1841.9,0.00028058,3]
[329358866,1718277133121,-500.0,0.00028058,3]
[329358867,1718277133137,-1562.15,0.00028058,3]
[329358868,1718277133152,-500.0,0.00028058,3]
[329358869,1718277133167,-1074.6,0.00028059,3]
[329358870,1718277133362,-31357.31,0.00028059,3]
[329358871,1718277133375,-1670.36,0.00028059,3]
[329358872,1718277133387,-1382.88,0.00028059,3]
[329358873,1718277133399,-739.94,0.00028059,3]
[329358874,1718277133410,-892.4,0.00028059,3]
[329358875,1718277133424,-1184.9,0.00028059,3]
[329358876,1718277133436,-585.64,0.00028059,3]
[329358877,1718277133447,-929.82,0.00028059,3]
[329358878,1718277133460,-623.27,0.00028059,3]
[329358879,1718277133476,-1120.48,0.00028059,3]
[329358880,1718277133500,-303.01661567,0.0002806,3]
[329358881,1718277133515,-653.07,0.0002806,3]
[329358882,1718277133528,-500.0,0.0002806,3]
[329358883,1718277133552,-1199.36,0.0002806,3]
[329358884,1718277133576,-760.53,0.0002806,3]
[329358885,1718277133601,-500.0,0.0002806,3]
[329358886,1718277133618,-500.0,0.0002806,3]
[329358887,1718277133638,-185.63947026,0.0002806,3]
[329358888,1718277133658,-1016.21,0.0002806,3]
[329358889,1718277133670,-803.45,0.0002806,3]
[329358890,1718277133681,-500.0,0.0002806,3]
[329358891,1718277133696,-500.0,0.0002806,3]
[329358892,1718277133711,-913.83,0.0002806,3]
[329358893,1718277133724,-878.65,0.0002806,3]
[329358894,1718277133736,-2296.66,0.0002806,3]
[329358895,1718277133750,-500.0,0.0002806,3]
[329358896,1718277133762,-762.45,0.0002806,3]
[329358897,1718277133774,-646.66,0.0002806,3]
[329358898,1718277133786,-555.03,0.0002806,3]
[329358899,1718277133798,-1924.86,0.0002806,3]
[329358900,1718277133810,-1949.34,0.0002806,3]
[329358901,1718277133821,-3080.34,0.0002806,3]
[329358902,1718277133834,-500.0,0.0002806,3]
[329358903,1718277133846,-500.0,0.0002806,3]
[329358904,1718277133858,-907.62,0.0002806,3]
[329358905,1718277133871,-525.39,0.0002806,3]
[329358906,1718277133883,-500.0,0.0002806,3]
[329358907,1718277133896,-985.91,0.0002806,3]
[329358908,1718277133910,-500.0,0.0002806,3]
[329358909,1718277133925,-2729.07,0.0002806,3]
[329358910,1718277133943,-500.0,0.0002806,3]
[329358911,1718277133955,-3064.01,0.0002806,3]
[329358912,1718277133969,-640.1,0.0002806,3]
[329358913,1718277133987,-500.0,0.0002806,3]
[329358914,1718277134005,-2850.36,0.0002806,3]
[329358915,1718277134020,-500.0,0.00028061,3]
[329358916,1718277134035,-500.0,0.00028061,3]
[329358917,1718277134049,-408.72,0.00028061,3]
[329358918,1718277134077,-500.0,0.00028061,3]
[329358919,1718277134090,-543.44,0.00028061,3]
[329358920,1718277134113,-500.0,0.00028061,3]
[329358921,1718277134129,-545.19,0.00028061,3]
[329358922,1718277134143,-330.1097039,0.00028061,3]
[329358923,1718277134164,-866.32,0.00028061,3]
[329358924,1718277134189,-554.24,0.00028061,3]
[329358925,1718277134208,-794.39,0.00028061,3]
[329358926,1718277134247,-500.0,0.00028061,3]
[329358927,1718277134262,-500.0,0.00028061,3]
[329358928,1718277134278,-500.0,0.00028061,3]
[329358929,1718277134289,-555.7,0.00028061,3]
[329358930,1718277134305,-1106.58,0.00028061,3]
[329358931,1718277134318,-283.47,0.00028061,3]
[329358932,1718277134331,-500.0,0.00028061,3]
[329358933,1718277134345,-500.0,0.00028061,3]
[329358934,1718277134357,-1207.15,0.00028061,3]
[329358935,1718277134369,-500.0,0.00028061,3]
[329358936,1718277134381,-940.28,0.00028061,3]
[329358937,1718277134392,-633.48,0.00028061,3]
[329358938,1718277134405,-1695.46,0.00028061,3]
[329358939,1718277134419,-500.0,0.00028061,3]
[329358940,1718277134432,-1351.29,0.00028061,3]
[329358941,1718277134446,-977.95,0.00028061,3]
[329358942,1718277134463,-557.92,0.00028061,3]
[329358943,1718277134480,-500.0,0.00028061,3]
[329358944,1718277134500,-869.98,0.00028061,3]
[329358945,1718277134513,-2538.97,0.00028061,3]
[329358946,1718277134529,-774.79,0.00028061,3]
[329358947,1718277134550,-500.0,0.00028061,3]
[329358948,1718277134563,-869.72,0.00028061,3]
[329358949,1718277134579,-2643.48,0.00028061,3]
[329358950,1718277134600,-1050.99,0.00028061,3]
[329358951,1718277134618,-212.78503697,0.00028061,3]
[329358952,1718277134633,-2325.51,0.00028061,3]
[329358953,1718277134644,-594.46,0.00028061,3]
[329358954,1718277134656,-6022.3,0.00028061,3]
[329358955,1718277134674,-1340.93,0.00028061,3]
[329358956,1718277134711,-525.87,0.00028061,3]
[329358957,1718277134732,-2801.14,0.00028061,3]
[329358958,1718277134754,-556.9,0.00028061,3]
[329358959,1718277134772,-1037.02,0.00028061,3]
[329358960,1718277134785,-788.09,0.00028061,3]
[329358961,1718277134797,-500.0,0.00028061,3]
[329358962,1718277134814,-1590.22,0.00028061,3]
[329358963,1718277134830,-1299.11,0.00028061,3]
[329358964,1718277134852,-1761.78,0.00028061,3]
[329358965,1718277134875,-1262.69,0.00028061,3]
[329358966,1718277134948,-8305.14,0.00028061,3]
[329358967,1718277134975,-4418.73,0.00028061,3]
[329358968,1718277135009,-500.0,0.00028061,3]
[329358969,1718277135023,-577.13,0.00028061,3]
[329358970,1718277135049,-1444.06,0.00028061,3]
[329358971,1718277135062,-500.0,0.00028061,3]
[329358972,1718277135088,-725.83,0.00028061,3]
[329358973,1718277135105,-1042.68,0.00028061,3]
[329358974,1718277135121,-500.0,0.00028061,3]
[329358975,1718277135143,-3100.67,0.00028061,3]
[329358976,1718277135156,-500.0,0.00028061,3]
[329358977,1718277135175,-518.8,0.00028061,3]
[329358978,1718277135190,-1727.08,0.00028061,3]
[329358979,1718277135240,-500.0,0.00028061,3]
[329358980,1718277135256,-500.0,0.00028061,3]
[329358981,1718277135270,-1122.65,0.00028061,3]
[329358982,1718277135287,-505.98,0.00028061,3]
[329358983,1718277135301,-1309.02,0.00028061,3]
[329358984,1718277135316,-662.75,0.00028061,3]
[329358985,1718277135328,-617.34,0.00028061,3]
[329358986,1718277135345,-983.88,0.00028061,3]
[329358987,1718277135365,-1386.52,0.00028061,3]
[329358988,1718277135379,-1442.64,0.00028061,3]
[329358989,1718277135391,-1828.6,0.00028061,3]
[329358990,1718277135401,-1892.77,0.00028061,3]
[329358991,1718277135414,-1002.34,0.00028061,3]
[329358992,1718277135426,-2616.45,0.00028061,3]
[329358993,1718277135447,-1657.94,0.00028061,3]
[329358994,1718277135477,-1131.64,0.00028061,3]
[329358995,1718277135495,-1100.13,0.00028061,3]
[329358996,1718277135510,-3181.1,0.00028061,3]
[329358997,1718277135522,-790.44,0.00028061,3]
[329358998,1718277135541,-157.61831525,0.00028071,2]
[329358999,1718277135554,-152.96556495,0.00028079,2]
[329359000,1718277135574,-250.12959222,0.00028106,7]
[329359001,1718277135608,-152.96556495,0.00028109,2]
[329359002,1718277135631,-150.0,0.00028118,2]
[329359003,1718277135643,-241.967316,0.00028164,2]
[329359004,1718277135660,-181.457018,0.00028164,2]
[329359005,1718277135670,-182.908713,0.00028164,2]
[329359006,1718277135683,-2906.015109,0.00028164,2]
[329359007,1718277135703,-2657.338274,0.00028164,2]
[329359008,1718277135721,-161.88789,0.00028164,2]
[329359009,1718277135735,-166.38546,0.00028164,2]
[329359010,1718277135747,-1758.608282,0.00028164,2]
[329359011,1718277135767,-182.908713,0.00028164,2]
[329359012,1718277135782,-183.532503,0.00028164,2]
[329359013,1718277135793,-4260.382005,0.00028164,2]
[329359014,1718277135807,-157.420683,0.00028164,2]
[329359015,1718277135818,-4330.157948,0.00028164,2]
[329359016,1718277135832,-6299.462,0.00028164,2]
[329359017,1718277135843,-335.055121,0.00028164,2]
[329359018,1718277135857,-4815.03,0.00028174,2]
[329359019,1718277135875,-152.96556495,0.00028186,2]
[329359020,1718277135893,-152.96556495,0.00028189,2]
[329359021,1718277135912,-978.0,0.000282,12]
[329359022,1718277135930,-611.0,0.000282,2]
[329359023,1718277135953,-153.29131969,0.0002821,2]
[329359024,1718277135967,-150.0,0.00028217,7]
[329359025,1718277135992,-446.46047709,0.00028218,2]
[329359026,1718277136007,-700.0,0.00028218,2]
[329359027,1718277136033,-600.0,0.00028218,2]
[329359028,1718277136049,-4000.0,0.00028218,2]
[329359029,1718277136065,-3400.0,0.00028218,2]
[329359030,1718277136084,-1183.25,0.00028218,3]
[329359031,1718277136096,-704.44,0.00028218,3]
[329359032,1718277136115,-500.0,0.00028218,3]
[329359033,1718277136153,-5852.16,0.00028218,3]
[329359034,1718277136168,-2891.73,0.00028218,3]
[329359035,1718277136185,-1318.26,0.00028218,3]
[329359036,1718277136199,-2337.62,0.00028218,3]
[329359037,1718277136231,-1185.47,0.00028218,3]
[329359038,1718277136256,-1475.74,0.00028218,3]
[329359039,1718277136272,-572.37,0.00028218,3]
[329359040,1718277136285,-500.0,0.00028218,2]
[329359041,1718277136304,-500.0,0.00028219,2]
[329359042,1718277136323,-2261.50005,0.00028275,2]
[329359043,1718277136337,-2174.611811,0.00028275,2]
[329359044,1718277136351,-2252.515979,0.00028275,2]
[329359045,1718277136363,-543.6482,0.00028275,2]
[329359046,1718277136386,-319.139473,0.00028275,2]
[329359047,1718277136403,-153.655824,0.00028275,2]
[329359048,1718277136417,-334.408129,0.00028275,2]
[329359049,1718277136432,-6302.355318,0.00028275,2]
[329359050,1718277136453,-2100.785106,0.00028275,2]
[329359051,1718277136477,-8451.729823,0.00028275,2]
[329359052,1718277136496,-219.963226,0.00028275,2]
[329359053,1718277136510,-343.039361,0.00028275,2]
[329359054,1718277136524,-8147.185355,0.00028275,2]
[329359055,1718277136549,-218.51742701,0.00028278,2]
[329359056,1718277136572,-150.0,0.000283,5]
[329359057,1718277136595,-152.96556495,0.00028302,2]
[329359058,1718277136621,-695.20998317,0.00028329,2]
[329359059,1718277136652,-628.5,0.00028332,3]
[329359060,1718277136665,-877.35,0.00028332,3]
[329359061,1718277136681,-1070.7,0.00028332,3]
[329359062,1718277136698,-500.0,0.00028332,3]
[329359063,1718277136713,-871.84,0.00028332,3]
[329359064,1718277136737,-1196.79,0.00028332,3]
[329359065,1718277136749,-2448.85,0.00028332,3]
[329359066,1718277136765,-748.9,0.00028332,3]
[329359067,1718277136786,-1584.05,0.00028332,3]
[329359068,1718277136800,-875.77,0.00028332,3]
[329359069,1718277136813,-896.33,0.00028332,3]
[329359070,1718277136828,-1393.21,0.00028332,3]
[329359071,1718277136842,-712.29,0.00028332,3]
[329359072,1718277136862,-3021.74,0.00028332,3]
[329359073,1718277136886,-2955.13,0.00028332,3]
[329359074,1718277136919,-1592.21,0.00028332,3]
[329359075,1718277136940,-1489.31,0.00028332,3]
[329359076,1718277136958,-1351.15,0.00028332,3]
[329359077,1718277136980,-1097.22,0.00028332,3]
[329359078,1718277137005,-1841.9,0.00028332,3]
[329359079,1718277137046,-500.0,0.00028332,3]
[329359080,1718277137066,-1562.15,0.00028332,3]
[329359081,1718277137084,-500.0,0.00028332,3]
[329359082,1718277137099,-1074.6,0.00028333,3]
[329359083,1718277137113,-31357.31,0.00028333,3]
[329359084,1718277137124,-1670.36,0.00028333,3]
[329359085,1718277137140,-1382.88,0.00028333,3]
[329359086,1718277137157,-739.94,0.00028333,3]
[329359087,1718277137170,-892.4,0.00028333,3]
[329359088,1718277137186,-1184.9,0.00028333,3]
[329359089,1718277137199,-585.64,0.00028333,3]
[329359090,1718277137218,-929.82,0.00028333,3]
[329359091,1718277137257,-623.27,0.00028333,3]
[329359092,1718277137274,-1120.48,0.00028333,3]
[329359093,1718277137290,-653.07,0.00028334,3]
[329359094,1718277137315,-500.0,0.00028334,3]
[329359095,1718277137347,-1199.36,0.00028334,3]
[329359096,1718277137362,-760.53,0.00028334,3]
[329359097,1718277137378,-500.0,0.00028334,3]
[329359098,1718277137391,-446.95221202,0.00028334,3]
[329359099,1718277137403,-1016.21,0.00028334,3]
[329359100,1718277137424,-803.45,0.00028334,3]
[329359101,1718277137439,-500.0,0.00028334,3]
[329359102,1718277137457,-500.0,0.00028334,3]
[329359103,1718277137476,-913.83,0.00028334,3]
[329359104,1718277137494,-878.65,0.00028334,3]
[329359105,1718277137506,-2296.66,0.00028334,3]
[329359106,1718277137676,-500.0,0.00028334,3]
[329359107,1718277137689,-762.45,0.00028334,3]
[329359108,1718277137702,-555.03,0.00028334,3]
[329359109,1718277137723,-1924.86,0.00028334,3]
[329359110,1718277137749,-1949.34,0.00028334,3]
[329359111,1718277137768,-3080.34,0.00028334,3]
[329359112,1718277137789,-500.0,0.00028334,3]
[329359113,1718277137802,-500.0,0.00028334,3]
[329359114,1718277137815,-907.62,0.00028334,3]
[329359115,1718277137838,-525.39,0.00028334,3]
[329359116,1718277137862,-500.0,0.00028334,3]
[329359117,1718277137880,-985.91,0.00028334,3]
[329359118,1718277137899,-500.0,0.00028334,3]
[329359119,1718277137934,-2729.07,0.00028334,3]
[329359120,1718277137948,-500.0,0.00028334,3]
[329359121,1718277137960,-3064.01,0.00028334,3]
[329359122,1718277137972,-640.1,0.00028334,3]
[329359123,1718277137984,-500.0,0.00028334,3]
[329359124,1718277137996,-2850.36,0.00028334,3]
[329359125,1718277138012,-500.0,0.00028335,3]
[329359126,1718277138028,-500.0,0.00028335,3]
[329359127,1718277138041,-500.0,0.00028335,3]
[329359128,1718277138054,-543.44,0.00028335,3]
[329359129,1718277138066,-500.0,0.00028335,3]
[329359130,1718277138079,-545.19,0.00028335,3]
[329359131,1718277138091,-866.32,0.00028335,3]
[329359132,1718277138103,-554.24,0.00028335,3]
[329359133,1718277138117,-794.39,0.00028335,3]
[329359134,1718277138130,-500.0,0.00028335,3]
[329359135,1718277138143,-500.0,0.00028335,3]
[329359136,1718277138155,-500.0,0.00028335,3]
[329359137,1718277138167,-555.7,0.00028335,3]
[329359138,1718277138180,-1106.58,0.00028335,3]
[329359139,1718277138192,-283.47,0.00028335,3]
[329359140,1718277138203,-500.0,0.00028335,3]
[329359141,1718277138216,-500.0,0.00028335,3]
[329359142,1718277138253,-1207.15,0.00028335,3]
[329359143,1718277138270,-500.0,0.00028335,3]
[329359144,1718277138282,-940.28,0.00028335,3]
[329359145,1718277138293,-633.48,0.00028335,3]
[329359146,1718277138304,-1695.46,0.00028335,3]
[329359147,1718277138317,-252.47793156,0.00028335,3]
[329359148,1718277138331,-1351.29,0.00028335,3]
[329359149,1718277138344,-977.95,0.00028335,3]
[329359150,1718277138365,-557.92,0.00028335,3]
[329359151,1718277138395,-500.0,0.00028335,3]
[329359152,1718277138414,-869.98,0.00028335,3]
[329359153,1718277138441,-2538.97,0.00028335,3]
[329359154,1718277138476,-774.79,0.00028335,3]
[329359155,1718277138492,-500.0,0.00028335,3]
[329359156,1718277138506,-869.72,0.00028335,3]
[329359157,1718277138520,-2643.48,0.00028335,3]
[329359158,1718277138534,-1050.99,0.00028335,3]
[329359159,1718277138548,-2325.51,0.00028335,3]
[329359160,1718277138560,-594.46,0.00028335,3]
[329359161,1718277138573,-6022.3,0.00028335,3]
[329359162,1718277138588,-1340.93,0.00028335,3]
[329359163,1718277138601,-525.87,0.00028335,3]
[329359164,1718277138613,-2801.14,0.00028335,3]
[329359165,1718277138625,-556.9,0.00028335,3]
[329359166,1718277138638,-1037.02,0.00028335,3]
[329359167,1718277138650,-788.09,0.00028335,3]
[329359168,1718277138662,-500.0,0.00028335,3]
[329359169,1718277138675,-1590.22,0.00028335,3]
[329359170,1718277138688,-1299.11,0.00028335,3]
[329359171,1718277138704,-1761.78,0.00028335,3]
[329359172,1718277138721,-1262.69,0.00028335,3]
[329359173,1718277138734,-8305.14,0.00028335,3]
[329359174,1718277138747,-4418.73,0.00028335,3]
[329359175,1718277138759,-500.0,0.00028335,3]
[329359176,1718277138769,-577.13,0.00028335,3]
[329359177,1718277138780,-1444.06,0.00028335,3]
[329359178,1718277138791,-500.0,0.00028335,3]
[329359179,1718277138803,-725.83,0.00028335,3]
[329359180,1718277138817,-1042.68,0.00028335,3]
[329359181,1718277138829,-500.0,0.00028335,3]
[329359182,1718277138841,-3100.67,0.00028335,3]
[329359183,1718277138854,-500.0,0.00028335,3]
[329359184,1718277138870,-518.8,0.00028335,3]
[329359185,1718277138885,-1727.08,0.00028335,3]
[329359186,1718277138897,-500.0,0.00028335,3]
[329359187,1718277138913,-500.0,0.00028335,3]
[329359188,1718277138928,-1122.65,0.00028335,3]
[329359189,1718277138940,-505.98,0.00028335,3]
[329359190,1718277138963,-1309.02,0.00028335,3]
[329359191,1718277138976,-662.75,0.00028335,3]
[329359192,1718277138993,-617.34,0.00028335,3]
[329359193,1718277139009,-983.88,0.00028335,3]
[329359194,1718277139020,-1386.52,0.00028335,3]
[329359195,1718277139030,-1442.64,0.00028335,3]
[329359196,1718277139041,-1828.6,0.00028335,3]
[329359197,1718277139052,-1892.77,0.00028335,3]
[329359198,1718277139069,-1002.34,0.00028335,3]
[329359199,1718277139083,-2616.45,0.00028335,3]
[329359200,1718277139096,-1657.94,0.00028335,3]
[329359201,1718277139106,-1131.64,0.00028335,3]
[329359202,1718277139118,-1100.13,0.00028335,3]
[329359203,1718277139129,-3181.1,0.00028335,3]
[329359204,1718277139140,-790.44,0.00028335,3]
[329359205,1718277139150,-152.96556495,0.00028337,2]
[329359206,1718277139166,-526.20582968,0.00028359,2]
[329359207,1718277139177,-303.0,0.0002837,2]
[329359208,1718277139188,-526.20582968,0.00028382,2]
[329359209,1718277139200,-182.536433,0.00028391,2]
[329359210,1718277139211,-182.601142,0.00028391,2]
[329359211,1718277139221,-181.687741,0.00028391,2]
[329359212,1718277139260,-526.20582968,0.00028392,2]
[329359213,1718277139272,-1608.33890032,0.00028399,2]
[329359214,1718277139283,-157.96553431,0.00028402,2]
[329359215,1718277139294,-250.12959222,0.00028405,7]
[329359216,1718277139305,-152.1899555,0.00028408,2]
[329359217,1718277139316,-600.0,0.00028458,7]
[329359218,1718277139328,-157.86625063,0.00028474,2]
[329359219,1718277139339,-1183.25,0.00028492,3]
[329359220,1718277139350,-704.44,0.00028492,3]
[329359221,1718277139361,-500.0,0.00028492,3]
[329359222,1718277139373,-5852.16,0.00028492,3]
[329359223,1718277139386,-2891.73,0.00028492,3]
[329359224,1718277139396,-1318.26,0.00028492,3]
[329359225,1718277139409,-2337.62,0.00028492,3]
[329359226,1718277139420,-1185.47,0.00028492,3]
[329359227,1718277139434,-1475.74,0.00028492,3]
[329359228,1718277139445,-572.37,0.00028492,3]
[329359229,1718277139459,-500.0,0.00028493,2]
[329359230,1718277139474,-12727.93724878,0.000285,3]
[329359231,1718277139485,-9969.72,0.000285,2]
[329359232,1718277139499,-151.0,0.00028502,5]
[329359233,1718277139512,-697.917617,0.00028516,2]
[329359234,1718277139524,-2906.015109,0.00028516,2]
[329359235,1718277139536,-2657.338274,0.00028516,2]
[329359236,1718277139547,-1758.608282,0.00028516,2]
[329359237,1718277139557,-4260.382005,0.00028516,2]
[329359238,1718277139570,-4330.157948,0.00028516,2]
[329359239,1718277139581,-6299.462,0.00028516,2]
[329359240,1718277139592,-335.055121,0.00028516,2]
[329359241,1718277139603,-606.23234933,0.00028518,7]
[329359242,1718277139616,-157.86625063,0.00028532,2]
[329359243,1718277139630,-218.51742701,0.00028542,2]
[329359244,1718277139642,-166.66666666,0.00028552,2]
[329359245,1718277139653,-526.20582968,0.000286,2]
[329359246,1718277139665,-628.5,0.00028606,3]
[329359247,1718277139677,-877.35,0.00028606,3]
[329359248,1718277139689,-1070.7,0.00028606,3]
[329359249,1718277139700,-500.0,0.00028606,3]
[329359250,1718277139715,-871.84,0.00028606,3]
[329359251,1718277139726,-1196.79,0.00028606,3]
[329359252,1718277139740,-2448.85,0.00028606,3]
[329359253,1718277139752,-748.9,0.00028606,3]
[329359254,1718277139764,-1584.05,0.00028606,3]
[329359255,1718277139774,-875.77,0.00028606,3]
[329359256,1718277139786,-896.33,0.00028606,3]
[329359257,1718277139800,-1393.21,0.00028606,3]
[329359258,1718277139813,-712.29,0.00028606,3]
[329359259,1718277139823,-3021.74,0.00028606,3]
[329359260,1718277139837,-1592.21,0.00028606,3]
[329359261,1718277139856,-2955.13,0.00028606,3]
[329359262,1718277139884,-1489.31,0.00028606,3]
[329359263,1718277139899,-1351.15,0.00028606,3]
[329359264,1718277139914,-1097.22,0.00028606,3]
[329359265,1718277139928,-1841.9,0.00028606,3]
[329359266,1718277139948,-500.0,0.00028606,3]
[329359267,1718277139960,-1562.15,0.00028606,3]
[329359268,1718277139974,-500.0,0.00028606,3]
[329359269,1718277139985,-1074.6,0.00028607,3]
[329359270,1718277139998,-31357.31,0.00028607,3]
[329359271,1718277140012,-1670.36,0.00028607,3]
[329359272,1718277140023,-1382.88,0.00028607,3]
[329359273,1718277140034,-739.94,0.00028607,3]
[329359274,1718277140046,-892.4,0.00028607,3]
[329359275,1718277140057,-1184.9,0.00028607,3]
[329359276,1718277140068,-585.64,0.00028607,3]
[329359277,1718277140079,-929.82,0.00028607,3]
[329359278,1718277140091,-623.27,0.00028607,3]
[329359279,1718277140104,-1120.48,0.00028607,3]
[329359280,1718277140117,-653.07,0.00028608,3]
[329359281,1718277140129,-500.0,0.00028608,3]
[329359282,1718277140142,-1199.36,0.00028608,3]
[329359283,1718277140154,-760.53,0.00028608,3]
[329359284,1718277140165,-500.0,0.00028608,3]
[329359285,1718277140177,-1016.21,0.00028608,3]
[329359286,1718277140188,-803.45,0.00028608,3]
[329359287,1718277140199,-500.0,0.00028608,3]
[329359288,1718277140212,-500.0,0.00028608,3]
[329359289,1718277140223,-913.83,0.00028608,3]
[329359290,1718277140235,-878.65,0.00028608,3]
[329359291,1718277140247,-2296.66,0.00028608,3]
[329359292,1718277140260,-500.0,0.00028608,3]
[329359293,1718277140299,-762.45,0.00028608,3]
[329359294,1718277140312,-555.03,0.00028608,3]
[329359295,1718277140324,-1924.86,0.00028608,3]
[329359296,1718277140336,-1949.34,0.00028608,3]
[329359297,1718277140348,-3080.34,0.00028608,3]
[329359298,1718277140362,-320.84917408,0.00028608,3]
[329359299,1718277140373,-500.0,0.00028608,3]
[329359300,1718277140385,-907.62,0.00028608,3]
[329359301,1718277140399,-525.39,0.00028608,3]
[329359302,1718277140412,-598.86845287,0.00028608,3]
[329359303,1718277140425,-985.91,0.00028608,3]
[329359304,1718277140445,-500.0,0.00028608,3]
[329359305,1718277140457,-2729.07,0.00028608,3]
[329359306,1718277140469,-500.0,0.00028608,3]
[329359307,1718277140481,-3064.01,0.00028608,3]
[329359308,1718277140496,-640.1,0.00028608,3]
[329359309,1718277140508,-500.0,0.00028608,3]
[329359310,1718277140519,-2850.36,0.00028608,3]
[329359311,1718277140533,-500.0,0.00028609,3]
[329359312,1718277140545,-235.14,0.00028609,3]
[329359313,1718277140556,-500.0,0.00028609,3]
[329359314,1718277140571,-543.44,0.00028609,3]
[329359315,1718277140583,-500.0,0.00028609,3]
[329359316,1718277140594,-545.19,0.00028609,3]
[329359317,1718277140605,-866.32,0.00028609,3]
[329359318,1718277140617,-554.24,0.00028609,3]
[329359319,1718277140629,-794.39,0.00028609,3]
[329359320,1718277140641,-189.89261998,0.00028609,3]
[329359321,1718277140653,-500.0,0.00028609,3]
[329359322,1718277140663,-500.0,0.00028609,3]
[329359323,1718277140791,-555.7,0.00028609,3]
[329359324,1718277140806,-1106.58,0.00028609,3]
[329359325,1718277140818,-283.47,0.00028609,3]
[329359326,1718277140830,-500.0,0.00028609,3]
[329359327,1718277140841,-416.7251476,0.00028609,3]
[329359328,1718277140853,-1207.15,0.00028609,3]
[329359329,1718277140865,-500.0,0.00028609,3]
[329359330,1718277140876,-940.28,0.00028609,3]
[329359331,1718277140889,-633.48,0.00028609,3]
[329359332,1718277140902,-1695.46,0.00028609,3]
[329359333,1718277140915,-1351.29,0.00028609,3]
[329359334,1718277140927,-977.95,0.00028609,3]